fUSD/lending_fUSD_20240319
["ID","MTS","AMOUNT","RATE_DAILY","PERIOD"]
[319603317,1710885166811,-1750.15,0.00033698,5]
[319603318,1710885166821,-507.49,0.00033698,5]
[319603319,1710885166830,-21984.05,0.00033698,5]
[319603320,1710885166840,-500.0,0.00033698,5]
[319603321,1710885166849,-1656.75,0.00033698,5]
[319603322,1710885166858,-682.19,0.00033698,5]
[319603323,1710885166867,-3232.39,0.00033698,5]
[319603324,1710885166876,-2644.39,0.00033698,5]
[319603325,1710885166886,-278.98244653,0.00033698,5]
[319603326,1710885166895,-4012.77,0.00033698,5]
[319603327,1710885166905,-5906.29,0.00033698,5]
[319603328,1710885166914,-500.0,0.00033698,5]
[319603329,1710885166923,-500.0,0.00033698,5]
[319603330,1710885166932,-1898.34,0.00033698,5]
[319603331,1710885166943,-6356.12,0.00033698,5]
[319603332,1710885166952,-860.9,0.00033698,5]
[319603333,1710885166962,-2450.74,0.00033698,5]
[319603334,1710885166971,-741.49,0.00033698,5]
[319603335,1710885166980,-988.62,0.00033698,5]
[319603336,1710885166990,-502.93,0.00033698,5]
[319603337,1710885167000,-3281.78,0.00033698,5]
[319603338,1710885167010,-887.69,0.00033698,5]
[319603339,1710885167019,-10393.93,0.00033698,5]
[319603340,1710885167029,-2054.31,0.00033698,5]
[319603341,1710885167039,-1073.2,0.00033698,5]
[319603342,1710885167049,-490.3527159,0.00033698,5]
[319603343,1710885167059,-5676.82,0.00033698,5]
[319603344,1710885167068,-500.0,0.00033698,5]
[319603345,1710885167077,-2336.1,0.00033698,5]
[319603346,1710885167087,-500.0,0.00033698,5]
[319603347,1710885167097,-2928.09,0.00033698,5]
[319603348,1710885167106,-784.81,0.00033698,5]
[319603349,1710885167116,-958.78,0.00033698,5]
[319603350,1710885167126,-12462.52,0.00033698,5]
[319603351,1710885167135,-5305.03,0.00033698,5]
[319603352,1710885167145,-742.85,0.00033698,5]
[319603353,1710885167155,-500.0,0.00033698,5]
[319603354,1710885167164,-3248.64,0.00033698,5]
[319603355,1710885167173,-8000.71,0.00033698,5]
[319603356,1710885167182,-9028.78,0.00033698,5]
[319603357,1710885167192,-7424.85,0.00033698,5]
[319603358,1710885167201,-6273.21,0.00033698,5]
[319603359,1710885167211,-7152.27,0.00033698,5]
[319603360,1710885167221,-603.25,0.00033698,5]
[319603361,1710885167230,-920.58,0.00033698,5]
[319603362,1710885167241,-862.02,0.00033698,5]
[319603363,1710885167250,-11402.88,0.00033698,5]
[319603364,1710885167260,-5180.59,0.00033698,5]
[319603365,1710885167270,-1058.28,0.00033698,5]
[319603366,1710885167280,-6676.62,0.00033698,5]
[319603367,1710885167290,-50748.97,0.00033698,5]
[319603368,1710885167300,-12563.76,0.00033698,5]
[319603369,1710885167310,-4392.06,0.00033698,5]
[319603370,1710885167320,-500.0,0.00033698,5]
[319603371,1710885167330,-500.0,0.00033698,5]
[319603372,1710885167340,-947.45,0.00033698,5]
[319603373,1710885167349,-6289.47,0.00033698,5]
[319603374,1710885167359,-994.47,0.00033698,5]
[319603375,1710885167369,-1127.56,0.00033698,5]
[319603376,1710885167380,-500.0,0.00033698,5]
[319603377,1710885167390,-1554.32,0.00033698,5]
[319603378,1710885167399,-1563.9,0.00033698,5]
[319603379,1710885167410,-2538.59,0.00033698,5]
[319603380,1710885167420,-9279.39,0.00033698,5]
[319603381,1710885167429,-2973.35,0.00033698,5]
[319603382,1710885167439,-1071.73,0.00033698,5]
[319603383,1710885167449,-1557.91,0.00033698,5]
[319603384,1710885167459,-500.0,0.00033698,5]
[319603385,1710885167468,-921.84,0.00033698,5]
[319603386,1710885167484,-1497.67,0.00033698,5]
[319603387,1710885167495,-5460.3,0.00033698,5]
[319603388,1710885167505,-549.68,0.00033698,5]
[319603389,1710885167515,-500.0,0.00033698,5]
[319603390,1710885167526,-500.0,0.00033698,5]
[319603391,1710885167535,-866.95,0.00033698,5]
[319603392,1710885167545,-23885.26,0.00033698,5]
[319603393,1710885167557,-34338.3,0.00033698,5]
[319603394,1710885167567,-2241.19,0.00033698,5]
[319603395,1710885167576,-6038.59,0.00033698,5]
[319603396,1710885167585,-870.15,0.00033698,5]
[319603397,1710885167596,-1003.35,0.00033698,5]
[319603398,1710885167606,-500.0,0.00033698,5]
[319603399,1710885167615,-5507.6,0.00033698,5]
[319603400,1710885167629,-615.59,0.00033698,5]
[319603401,1710885167638,-5378.59,0.00033698,5]
[319603402,1710885167649,-500.0,0.00033698,5]
[319603403,1710885167659,-681.39,0.00033698,5]
[319603404,1710885167668,-3623.08,0.00033698,5]
[319603405,1710885167678,-659.74,0.00033698,5]
[319603406,1710885167688,-500.0,0.00033698,5]
[319603407,1710885167698,-176.69100632,0.00033698,5]
[319603408,1710885167707,-1648.34,0.00033698,5]
[319603409,1710885167716,-7204.29,0.00033698,5]
[319603410,1710885167725,-976.18,0.00033698,5]
[319603411,1710885167735,-1912.73,0.00033698,5]
[319603412,1710885167744,-3082.4,0.00033698,5]
[319603413,1710885167754,-2522.27,0.00033698,5]
[319603414,1710885167763,-6424.1,0.00033698,5]
[319603415,1710885167989,-5688.06,0.00033698,5]
[319603416,1710885167999,-1570.96,0.00033698,5]
[319603417,1710885168009,-500.0,0.00033698,5]
[319603418,1710885168019,-2703.38,0.00033698,5]
[319603419,1710885168029,-1409.47,0.00033698,5]
[319603420,1710885168038,-10351.23,0.00033698,5]
[319603421,1710885168048,-500.0,0.00033698,5]
[319603422,1710885168057,-723.42,0.00033698,5]
[319603423,1710885168066,-3159.85,0.00033698,5]
[319603424,1710885168076,-19207.21,0.00033698,5]
[319603425,1710885168087,-3910.17,0.00033698,5]
[319603426,1710885168097,-989.66,0.00033698,5]
[319603427,1710885168107,-500.0,0.00033698,5]
[319603428,1710885168116,-1575.99,0.00033698,5]
[319603429,1710885168127,-223.88250246,0.00033698,5]
[319603430,1710885168136,-2518.49,0.00033698,5]
[319603431,1710885168145,-484.18359148,0.00033698,5]
[319603432,1710885168156,-602.98,0.00033698,5]
[319603433,1710885168165,-2902.62,0.00033698,5]
[319603434,1710885168176,-1081.46,0.00033698,5]
[319603435,1710885168186,-996.99,0.00033698,5]
[319603436,1710885168196,-11316.17,0.00033698,5]
[319603437,1710885168210,-722.94,0.00033698,5]
[319603438,1710885168220,-21059.27,0.00033698,5]
[319603439,1710885168229,-1144.28,0.00033698,5]
[319603440,1710885168239,-3248.34,0.00033698,5]
[319603441,1710885168248,-500.0,0.00033698,5]
[319603442,1710885168258,-592.77,0.00033698,5]
[319603443,1710885168268,-611.45,0.00033698,5]
[319603444,1710885168278,-500.0,0.00033698,5]
[319603445,1710885168288,-1214.02,0.00033698,5]
[319603446,1710885168298,-5044.94,0.00033698,5]
[319603447,1710885168307,-500.0,0.00033698,5]
[319603448,1710885168317,-856.7,0.00033698,5]
[319603449,1710885168326,-6225.21,0.00033698,5]
[319603450,1710885168335,-608.72,0.00033698,5]
[319603451,1710885168344,-1511.11,0.00033698,5]
[319603452,1710885168354,-1279.36,0.00033698,5]
[319603453,1710885168363,-8737.55,0.00033698,5]
[319603454,1710885168373,-11752.03,0.00033698,5]
[319603455,1710885168383,-4482.5,0.00033698,5]
[319603456,1710885168392,-5316.22,0.00033698,5]
[319603457,1710885168402,-1788.46,0.00033698,5]
[319603458,1710885168413,-1321.67,0.00033698,5]
[319603459,1710885168422,-518.08,0.00033698,5]
[319603460,1710885168432,-22991.35,0.00033698,5]
[319603461,1710885168441,-1177.76,0.00033698,5]
[319603462,1710885168450,-505.75,0.00033698,5]
[319603463,1710885168460,-1429.54,0.00033698,5]
[319603464,1710885168473,-2886.03,0.00033698,5]
[319603465,1710885168482,-500.0,0.00033698,5]
[319603466,1710885168492,-3473.42,0.00033698,5]
[319603467,1710885168502,-20562.17,0.00033698,5]
[319603468,1710885168512,-4026.93,0.00033698,5]
[319603469,1710885168522,-500.0,0.00033698,5]
[319603470,1710885168531,-805.12,0.00033698,5]
[319603471,1710885168541,-981.11,0.00033698,5]
[319603472,1710885168551,-877.4,0.00033698,5]
[319603473,1710885168562,-1121.88,0.00033698,5]
[319603474,1710885168571,-836.09,0.00033698,5]
[319603475,1710885168580,-12965.17,0.00033698,5]
[319603476,1710885168590,-8047.18,0.00033698,5]
[319603477,1710885168600,-4640.74,0.00033698,5]
[319603478,1710885168609,-6661.58,0.00033698,5]
[319603479,1710885168619,-720.32,0.00033698,5]
[319603480,1710885168629,-500.0,0.00033698,5]
[319603481,1710885168638,-3306.12,0.00033698,5]
[319603482,1710885168647,-1406.25,0.00033698,5]
[319603483,1710885168658,-603.58,0.00033698,5]
[319603484,1710885168667,-500.0,0.00033698,5]
[319603485,1710885168676,-1438.11,0.00033698,5]
[319603486,1710885168686,-6333.98,0.00033698,5]
[319603487,1710885168695,-2692.37,0.00033698,5]
[319603488,1710885168704,-26854.72,0.00033698,5]
[319603489,1710885168714,-614.48,0.00033698,5]
[319603490,1710885168724,-2847.31,0.00033698,5]
[319603491,1710885168735,-1953.31,0.00033698,5]
[319603492,1710885168745,-1298.71,0.00033698,5]
[319603493,1710885168755,-500.0,0.00033698,5]
[319603494,1710885168764,-521.8,0.00033698,5]
[319603495,1710885168774,-972.96,0.00033698,5]
[319603496,1710885168784,-500.0,0.00033698,5]
[319603497,1710885168793,-599.79,0.00033698,5]
[319603498,1710885168803,-1902.54,0.00033698,5]
[319603499,1710885168812,-673.97,0.00033698,5]
[319603500,1710885168822,-649.62,0.00033698,5]
[319603501,1710885168832,-26670.31,0.00033698,5]
[319603502,1710885168842,-5843.77,0.00033698,5]
[319603503,1710885168851,-691.9,0.00033698,5]
[319603504,1710885168861,-1109.32,0.00033698,5]
[319603505,1710885168871,-1828.95,0.00033698,5]
[319603506,1710885168880,-1199.84,0.00033698,5]
[319603507,1710885168889,-1216.0,0.00033698,5]
[319603508,1710885168899,-169.14,0.00033906,2]
[319603509,1710885168908,-2253.6710148,0.00033949,2]
[319603510,1710885168918,-83159.7666436,0.00033949,2]
[319603511,1710885168927,-1041.1,0.00033972,5]
[319603512,1710885168937,-905.92,0.00033972,5]
[319603513,1710885168946,-760.8,0.00033972,5]
[319603514,1710885168955,-500.0,0.00033972,5]
[319603515,1710885168964,-500.0,0.00033972,5]
[319603516,1710885168974,-918.16,0.00033972,5]
[319603517,1710885168983,-1354.5,0.00033972,5]
[319603518,1710885168993,-563.69,0.00033972,5]
[319603519,1710885169002,-553.29,0.00033972,5]
[319603520,1710885169012,-500.0,0.00033972,5]
[319603521,1710885169022,-500.0,0.00033972,5]
[319603522,1710885169031,-576.34,0.00033972,5]
[319603523,1710885169041,-500.0,0.00033972,5]
[319603524,1710885169050,-628.41,0.00033972,5]
[319603525,1710885169060,-382.8921294,0.00033972,5]
[319603526,1710885169069,-500.0,0.00033972,5]
[319603527,1710885169079,-620.13,0.00033972,5]
[319603528,1710885169088,-786.01,0.00033972,5]
[319603529,1710885169097,-865.28,0.00033972,5]
[319603530,1710885169108,-964.89,0.00033972,5]
[319603531,1710885169117,-564.61,0.00033972,5]
[319603532,1710885169127,-500.0,0.00033972,5]
[319603533,1710885169138,-500.0,0.00033972,5]
[319603534,1710885169148,-529.43,0.00033972,5]
[319603535,1710885169158,-618.58,0.00033972,5]
[319603536,1710885169168,-563.52,0.00033972,5]
[319603537,1710885169177,-2015.12,0.00033972,5]
[319603538,1710885169187,-631.9,0.00033972,5]
[319603539,1710885169196,-681.13,0.00033972,5]
[319603540,1710885169207,-1086.99,0.00033972,5]
[319603541,1710885169217,-500.0,0.00033972,5]
[319603542,1710885169227,-500.0,0.00033972,5]
[319603543,1710885169237,-500.0,0.00033972,5]
[319603544,1710885169247,-500.0,0.00033972,5]
[319603545,1710885169257,-652.31,0.00033972,5]
[319603546,1710885169268,-1320.6,0.00033972,5]
[319603547,1710885169278,-1250.92,0.00033972,5]
[319603548,1710885169288,-1120.04,0.00033972,5]
[319603549,1710885169303,-500.0,0.00033972,5]
[319603550,1710885169313,-510.25,0.00033972,5]
[319603551,1710885169323,-921.3,0.00033972,5]
[319603552,1710885169333,-1041.72,0.00033972,5]
[319603553,1710885169343,-1043.25,0.00033972,5]
[319603554,1710885169353,-500.0,0.00033972,5]
[319603555,1710885169363,-535.44,0.00033972,5]
[319603556,1710885169374,-500.0,0.00033972,5]
[319603557,1710885169385,-500.0,0.00033972,5]
[319603558,1710885169395,-500.0,0.00033972,5]
[319603559,1710885169405,-500.0,0.00033972,5]
[319603560,1710885169416,-500.0,0.00033972,5]
[319603561,1710885169426,-957.02,0.00033972,5]
[319603562,1710885169435,-549.6,0.00033972,5]
[319603563,1710885169446,-500.0,0.00033972,5]
[319603564,1710885169456,-546.14,0.00033972,5]
[319603565,1710885169466,-500.0,0.00033972,5]
[319603566,1710885169479,-983.01,0.00033972,5]
[319603567,1710885169489,-500.0,0.00033972,5]
[319603568,1710885169500,-583.52,0.00033972,5]
[319603569,1710885169509,-502.25,0.00033972,5]
[319603570,1710885169519,-500.0,0.00033972,5]
[319603571,1710885169529,-701.32,0.00033972,5]
[319603572,1710885169539,-845.97,0.00033972,5]
[319603573,1710885169548,-604.6,0.00033972,5]
[319603574,1710885169559,-626.44,0.00033972,5]
[319603575,1710885169570,-500.0,0.00033972,5]
[319603576,1710885169581,-1296.65,0.00033972,5]
[319603577,1710885169590,-1134.53,0.00033972,5]
[319603578,1710885169601,-500.0,0.00033972,5]
[319603579,1710885169611,-621.91822368,0.00033972,5]
[319603580,1710885169621,-507.2,0.00033972,5]
[319603581,1710885169632,-783.57,0.00033972,5]
[319603582,1710885169642,-1022.89,0.00033972,5]
[319603583,1710885169651,-668.88,0.00033972,5]
[319603584,1710885169663,-500.0,0.00033972,5]
[319603585,1710885169673,-597.77,0.00033972,5]
[319603586,1710885169683,-500.0,0.00033972,5]
[319603587,1710885169693,-500.0,0.00033972,5]
[319603588,1710885169703,-1578.12,0.00033972,5]
[319603589,1710885169713,-1317.95,0.00033972,5]
[319603590,1710885169723,-500.0,0.00033972,5]
[319603591,1710885169733,-706.81,0.00033972,5]
[319603592,1710885169743,-820.72,0.00033972,5]
[319603593,1710885169753,-500.0,0.00033972,5]
[319603594,1710885169763,-511.35,0.00033972,5]
[319603595,1710885169772,-1159.47,0.00033972,5]
[319603596,1710885169782,-752.64,0.00033972,5]
[319603597,1710885169791,-1433.6,0.00033972,5]
[319603598,1710885169800,-500.0,0.00033972,5]
[319603599,1710885169809,-500.0,0.00033972,5]
[319603600,1710885169818,-1189.27,0.00033972,5]
[319603601,1710885169828,-500.0,0.00033972,5]
[319603602,1710885169837,-500.0,0.00033972,5]
[319603603,1710885169847,-572.14,0.00033972,5]
[319603604,1710885169856,-1127.91,0.00033972,5]
[319603605,1710885169864,-729.46,0.00033972,5]
[319603606,1710885169874,-500.0,0.00033972,5]
[319603607,1710885169884,-500.0,0.00033972,5]
[319603608,1710885169894,-1199.62,0.00033972,5]
[319603609,1710885169903,-562.99,0.00033972,5]
[319603610,1710885169913,-786.3,0.00033972,5]
[319603611,1710885169924,-500.0,0.00033972,5]
[319603612,1710885169934,-1265.95,0.00033972,5]
[319603613,1710885169943,-580.29,0.00033972,5]
[319603614,1710885169953,-500.0,0.00033972,5]
[319603615,1710885169963,-500.0,0.00033972,5]
[319603616,1710885169972,-2136.15,0.00033972,5]
[319603617,1710885169982,-718.68,0.00033972,5]
[319603618,1710885169993,-928.05,0.00033972,5]
[319603619,1710885170003,-500.0,0.00033972,5]
[319603620,1710885170013,-783.9,0.00033972,5]
[319603621,1710885170023,-1320.02,0.00033972,5]
[319603622,1710885170034,-1043.02,0.00033972,5]
[319603623,1710885170044,-802.08,0.00033972,5]
[319603624,1710885170055,-1028.49,0.00033972,5]
[319603625,1710885170065,-1179.51,0.00033972,5]
[319603626,1710885170075,-812.3,0.00033972,5]
[319603627,1710885170085,-1146.04,0.00033972,5]
[319603628,1710885170094,-500.0,0.00033972,5]
[319603629,1710885170104,-1045.71,0.00033972,5]
[319603630,1710885170114,-500.0,0.00033972,5]
[319603631,1710885170124,-530.67,0.00033972,5]
[319603632,1710885170134,-649.64,0.00033972,5]
[319603633,1710885170144,-500.0,0.00033972,5]
[319603634,1710885170154,-500.0,0.00033972,5]
[319603635,1710885170165,-500.0,0.00033972,5]
[319603636,1710885170175,-500.0,0.00033972,5]
[319603637,1710885170185,-775.28,0.00033972,5]
[319603638,1710885170196,-897.58,0.00033972,5]
[319603639,1710885170207,-1675.73,0.00033972,5]
[319603640,1710885170218,-500.0,0.00033972,5]
[319603641,1710885170229,-937.79,0.00033972,5]
[319603642,1710885170239,-500.0,0.00033972,5]
[319603643,1710885170249,-734.15,0.00033972,5]
[319603644,1710885170260,-1431.93,0.00033972,5]
[319603645,1710885170270,-530.51,0.00033972,5]
[319603646,1710885170280,-1508.78,0.00033972,5]
[319603647,1710885170290,-500.0,0.00033972,5]
[319603648,1710885170300,-500.0,0.00033972,5]
[319603649,1710885170310,-621.71,0.00033972,5]
[319603650,1710885170320,-3024.0,0.00033972,5]
[319603651,1710885170330,-571.47,0.00033972,5]
[319603652,1710885170340,-500.0,0.00033972,5]
[319603653,1710885170350,-762.86,0.00033972,5]
[319603654,1710885170359,-538.79,0.00033972,5]
[319603655,1710885170369,-985.89,0.00033972,5]
[319603656,1710885170379,-1947.91,0.00033972,5]
[319603657,1710885170389,-863.2,0.00033972,5]
[319603658,1710885170398,-538.79,0.00033972,5]
[319603659,1710885170410,-747.16,0.00033972,5]
[319603660,1710885170419,-772.61,0.00033972,5]
[319603661,1710885170430,-500.0,0.00033972,5]
[319603663,1710885170543,-500.0,0.00033972,5]
[319603664,1710885170554,-1767.34,0.00033972,5]
[319603665,1710885170565,-500.0,0.00033972,5]
[319603666,1710885170575,-1603.73,0.00033972,5]
[319603667,1710885170585,-500.0,0.00033972,5]
[319603668,1710885170596,-892.48,0.00033972,5]
[319603669,1710885170605,-654.11,0.00033972,5]
[319603670,1710885170615,-1478.75,0.00033972,5]
[319603671,1710885170625,-1208.68,0.00033972,5]
[319603672,1710885170634,-1477.07,0.00033972,5]
[319603673,1710885170643,-1428.4,0.00033972,5]
[319603674,1710885170652,-526.9,0.00033972,5]
[319603675,1710885170664,-2930.57,0.00033972,5]
[319603676,1710885170674,-1084.77,0.00033972,5]
[319603677,1710885170685,-948.83,0.00033972,5]
[319603678,1710885170694,-500.0,0.00033972,5]
[319603679,1710885170705,-1970.31,0.00033972,5]
[319603680,1710885170715,-748.56,0.00033972,5]
[319603681,1710885170727,-853.25,0.00033972,5]
[319603682,1710885170737,-1046.29,0.00033972,5]
[319603683,1710885170747,-608.95,0.00033972,5]
[319603684,1710885170757,-636.98,0.00033972,5]
[319603685,1710885170767,-500.0,0.00033972,5]
[319603686,1710885170777,-1279.27,0.00033972,5]
[319603687,1710885170788,-1827.01,0.00033972,5]
[319603688,1710885170797,-500.0,0.00033972,5]
[319603689,1710885170808,-1006.11,0.00033972,5]
[319603690,1710885170817,-500.0,0.00033972,5]
[319603691,1710885170827,-1949.93,0.00033972,5]
[319603692,1710885170836,-1192.24,0.00033972,5]
[319603693,1710885170846,-2813.53,0.00033972,5]
[319603694,1710885170855,-845.98,0.00033972,5]
[319603695,1710885170865,-1011.35,0.00033972,5]
[319603696,1710885170874,-1701.68,0.00033972,5]
[319603697,1710885170883,-1413.56,0.00033972,5]
[319603698,1710885170893,-671.21,0.00033972,5]
[319603699,1710885170903,-856.2,0.00033972,5]
[319603700,1710885170912,-1896.31,0.00033972,5]
[319603701,1710885170922,-2782.61,0.00033972,5]
[319603702,1710885170931,-609.95,0.00033972,5]
[319603703,1710885170940,-577.38544989,0.00033972,5]
[319603704,1710885170950,-1536.94,0.00033972,5]
[319603705,1710885170960,-2552.49,0.00033972,5]
[319603706,1710885170970,-2081.49,0.00033972,5]
[319603707,1710885170980,-526.3896617,0.00033972,5]
[319603708,1710885170989,-1715.16,0.00033972,5]
[319603709,1710885170999,-1266.65,0.00033972,5]
[319603710,1710885171009,-1645.88,0.00033972,5]
[319603711,1710885171019,-500.0,0.00033972,5]
[319603712,1710885171029,-500.0,0.00033972,5]
[319603713,1710885171038,-500.0,0.00033972,5]
[319603714,1710885171048,-500.0,0.00033972,5]
[319603715,1710885171058,-1784.06,0.00033972,5]
[319603716,1710885171067,-1425.44,0.00033972,5]
[319603717,1710885171077,-645.99,0.00033972,5]
[319603718,1710885171087,-856.99,0.00033972,5]
[319603719,1710885171097,-1509.6,0.00033972,5]
[319603720,1710885171106,-565.78236096,0.00033972,5]
[319603721,1710885171115,-1899.37,0.00033972,5]
[319603722,1710885171125,-825.81,0.00033972,5]
[319603723,1710885171134,-500.0,0.00033972,5]
[319603724,1710885171144,-1668.46,0.00033972,5]
[319603725,1710885171154,-500.0,0.00033972,5]
[319603726,1710885171165,-1817.59,0.00033972,5]
[319603727,1710885171175,-612.56,0.00033972,5]
[319603728,1710885171185,-500.0,0.00033972,5]
[319603729,1710885171196,-641.85,0.00033972,5]
[319603730,1710885171206,-500.0,0.00033972,5]
[319603731,1710885171218,-3349.51,0.00033972,5]
[319603732,1710885171230,-1668.73,0.00033972,5]
[319603733,1710885171241,-2185.83,0.00033972,5]
[319603734,1710885171252,-500.0,0.00033972,5]
[319603735,1710885171263,-1047.88,0.00033972,5]
[319603736,1710885171273,-635.7366531,0.00033972,5]
[319603737,1710885171285,-709.8,0.00033972,5]
[319603738,1710885171296,-3189.82,0.00033972,5]
[319603739,1710885171308,-2131.99,0.00033972,5]
[319603740,1710885171319,-500.0,0.00033972,5]
[319603741,1710885171331,-500.0,0.00033972,5]
[319603742,1710885171342,-2548.99,0.00033972,5]
[319603743,1710885171354,-1717.39,0.00033972,5]
[319603744,1710885171364,-500.0,0.00033972,5]
[319603745,1710885171376,-3499.12,0.00033972,5]
[319603746,1710885171387,-3366.11,0.00033972,5]
[319603747,1710885171398,-920.95,0.00033972,5]
[319603748,1710885171409,-1172.13,0.00033972,5]
[319603749,1710885171425,-762.14,0.00033972,5]
[319603750,1710885171436,-500.0,0.00033972,5]
[319603751,1710885171447,-500.0,0.00033972,5]
[319603752,1710885171458,-500.0,0.00033972,5]
[319603753,1710885171469,-500.0,0.00033972,5]
[319603754,1710885171482,-651.81,0.00033972,5]
[319603755,1710885171492,-500.0,0.00033972,5]
[319603756,1710885171503,-2755.73,0.00033972,5]
[319603757,1710885171514,-2171.26,0.00033972,5]
[319603758,1710885171525,-554.31,0.00033972,5]
[319603759,1710885171536,-913.38,0.00033972,5]
[319603760,1710885171548,-517.56,0.00033972,5]
[319603761,1710885171559,-1265.69,0.00033972,5]
[319603762,1710885171571,-622.91,0.00033972,5]
[319603763,1710885171584,-576.05,0.00033972,5]
[319603764,1710885171596,-2191.46,0.00033972,5]
[319603765,1710885171608,-1378.12,0.00033972,5]
[319603766,1710885171619,-500.0,0.00033972,5]
[319603767,1710885171630,-832.3,0.00033972,5]
[319603768,1710885171641,-3259.21,0.00033972,5]
[319603769,1710885171653,-516.5,0.00033972,5]
[319603770,1710885171666,-500.0,0.00033972,5]
[319603771,1710885171677,-500.0,0.00033972,5]
[319603772,1710885171689,-750.69,0.00033972,5]
[319603773,1710885171700,-6099.55,0.00033972,5]
[319603774,1710885171710,-500.0,0.00033972,5]
[319603775,1710885171720,-705.53,0.00033972,5]
[319603776,1710885171730,-510.82,0.00033972,5]
[319603777,1710885171740,-583.59,0.00033972,5]
[319603778,1710885171750,-554.14,0.00033972,5]
[319603779,1710885171759,-1769.12,0.00033972,5]
[319603780,1710885171768,-1054.91,0.00033972,5]
[319603781,1710885171778,-758.11,0.00033972,5]
[319603782,1710885171788,-500.0,0.00033972,5]
[319603783,1710885171797,-614.47,0.00033972,5]
[319603784,1710885171807,-500.0,0.00033972,5]
[319603785,1710885171816,-565.83,0.00033972,5]
[319603786,1710885171826,-3031.48,0.00033972,5]
[319603787,1710885171837,-1813.36,0.00033972,5]
[319603788,1710885171846,-1793.05,0.00033972,5]
[319603789,1710885171856,-1781.25,0.00033972,5]
[319603790,1710885171865,-527.09438179,0.00033972,5]
[319603791,1710885171875,-5948.25,0.00033972,5]
[319603792,1710885171884,-721.19,0.00033972,5]
[319603793,1710885171893,-500.0,0.00033972,5]
[319603794,1710885171903,-2298.94,0.00033972,5]
[319603795,1710885171914,-500.0,0.00033972,5]
[319603796,1710885171923,-1467.68,0.00033972,5]
[319603797,1710885171933,-2048.3,0.00033972,5]
[319603798,1710885171944,-740.6,0.00033972,5]
[319603799,1710885171953,-3725.64,0.00033972,5]
[319603800,1710885171963,-7446.28,0.00033972,5]
[319603801,1710885171972,-1176.01,0.00033972,5]
[319603802,1710885171981,-500.0,0.00033972,5]
[319603803,1710885171990,-1639.61,0.00033972,5]
[319603804,1710885172000,-814.35,0.00033972,5]
[319603805,1710885172009,-1904.86,0.00033972,5]
[319603806,1710885172019,-531.89,0.00033972,5]
[319603807,1710885172028,-541.15,0.00033972,5]
[319603808,1710885172038,-505.23,0.00033972,5]
[319603809,1710885172050,-1726.69,0.00033972,5]
[319603810,1710885172063,-406.64288701,0.00033972,5]
[319603811,1710885172081,-706.92,0.00033972,5]
[319603812,1710885172095,-1397.11,0.00033972,5]
[319603813,1710885172105,-644.74,0.00033972,5]
[319603814,1710885172115,-723.57,0.00033972,5]
[319603815,1710885172125,-2864.27,0.00033972,5]
[319603816,1710885172135,-2584.9,0.00033972,5]
[319603817,1710885172145,-500.0,0.00033972,5]